fUST/lending_fUST_20251030
["ID","MTS","AMOUNT","RATE_DAILY","PERIOD"]
[392668348,1761803432519,-500.0,0.0002999,2]
[392668350,1761803432528,-500.0,0.0002999,2]
[392668353,1761803432538,-521.49764628,0.0002999,2]
[392668354,1761803432547,-408.7549058,0.0002999,2]
[392668356,1761803432556,-500.0,0.0002999,2]
[392668359,1761803432565,-500.0,0.0002999,2]
[392668361,1761803432575,-500.0,0.0002999,2]
[392668362,1761803432585,-500.0,0.0002999,2]
[392668365,1761803432594,-500.0,0.0002999,2]
[392668367,1761803432604,-500.0,0.0002999,2]
[392668369,1761803432613,-500.0,0.0002999,2]
[392668371,1761803432623,-500.0,0.0002999,2]
[392668373,1761803432632,-500.0,0.0002999,2]
[392668375,1761803432642,-500.0,0.0002999,2]
[392668377,1761803432651,-500.0,0.0002999,2]
[392668379,1761803432659,-500.0,0.0002999,2]
[392668381,1761803432669,-500.0,0.0002999,2]
[392668383,1761803432678,-500.0,0.0002999,2]
[392668385,1761803432687,-500.0,0.0002999,2]
[392668387,1761803432697,-500.0,0.0002999,2]
[392668389,1761803432708,-500.0,0.0002999,2]
[392668391,1761803432718,-500.0,0.0002999,2]
[392668393,1761803432727,-500.0,0.0002999,2]
[392668395,1761803432736,-500.0,0.0002999,2]
[392668397,1761803432746,-500.0,0.0002999,2]
[392668399,1761803432756,-500.0,0.0002999,2]
[392668401,1761803432765,-500.0,0.0002999,2]
[392668403,1761803432775,-500.0,0.0002999,2]
[392668405,1761803432784,-491.87115765,0.0002999,2]
[392668407,1761803432793,-500.0,0.0002999,2]
[392668409,1761803432803,-500.0,0.0002999,2]
[392668411,1761803432812,-500.0,0.0002999,2]
[392668413,1761803432821,-500.0,0.00029991,4]
[392668415,1761803432831,-214.94279303,0.00029992,2]
[392668417,1761803432840,-213.6091944,0.00029992,2]
[392668419,1761803432849,-369.104,0.00029993,24]
[392668421,1761803432859,-500.0,0.00029995,4]
[392668423,1761803432868,-500.0,0.00029995,4]
[392668425,1761803432877,-500.0,0.00029995,4]
[392668427,1761803432886,-186.33,0.00029995,4]
[392668428,1761803432897,-496.64755248,0.00029995,4]
[392668430,1761803432907,-418.1147382,0.00029995,4]
[392668432,1761803432917,-202.82,0.00029998,4]
[392668435,1761803432927,-500.0,0.00029999,2]
[392668436,1761803432936,-500.0,0.00029999,2]
[392668439,1761803432946,-495.84907593,0.00029999,4]
[392668440,1761803432956,-500.0,0.00029999,4]
[392668442,1761803432966,-500.0,0.00029999,4]
[392668444,1761803432975,-18567.8289071,0.0003,20]
[392668447,1761803432988,-682.21414333,0.0003,20]
[392668479,1761803437670,-6721.01018209,0.0003,20]
[392668480,1761803437679,-205.9856055,0.0003,2]
[392668481,1761803437689,-205.98560548,0.0003,2]
[392668482,1761803437699,-205.98560548,0.0003,2]
[392668483,1761803437710,-598.28,0.00030203,4]
[392668484,1761803437719,-505.53,0.00030203,4]
[392668485,1761803437728,-1145.83,0.00030203,4]
[392668486,1761803437737,-608.75075822,0.00030252,3]
[392668487,1761803437746,-199.11661187,0.00030269,4]
[392668488,1761803437755,-508.53738371,0.00030273,2]
[392668489,1761803437764,-500.0,0.00030273,2]
[392668490,1761803437774,-500.0,0.00030273,4]
[392668491,1761803437783,-500.0,0.00030273,4]
[392668492,1761803437792,-505.53,0.00030477,4]
[392668493,1761803437801,-1145.83,0.00030477,4]
[392668494,1761803437811,-1000.0,0.000305,7]
[392668495,1761803437820,-650.75813196,0.00030521,5]
[392668496,1761803437830,-1000.0,0.00030521,5]
[392668497,1761803437840,-505.53,0.00030751,4]
[392668498,1761803437849,-1145.83,0.00030751,4]
[392668499,1761803437859,-500.0,0.00030773,15]
[392668500,1761803437868,-505.53,0.00031025,4]
[392668501,1761803437878,-1145.83,0.00031025,4]
[392668502,1761803437887,-500.0,0.00031068,5]
[392668503,1761803437896,-505.53,0.00031299,4]
[392668504,1761803437906,-540.72474329,0.00031299,4]
[392668505,1761803437917,-505.75395028,0.00031299,4]
[392668513,1761803440159,-99.35130643,0.00031299,4]
[392668514,1761803440169,-481.66954757,0.00031329,2]
[392668532,1761803445909,-52.01109614,0.00031329,2]
[392668533,1761803445920,-505.53,0.00031573,4]
[392668534,1761803445929,-1145.83,0.00031573,4]
[392668535,1761803445939,-249.0,0.00031673,2]
[392668536,1761803445948,-249.0,0.00031684,7]
[392668537,1761803445957,-249.0,0.00031698,7]
[392668538,1761803445966,-249.0,0.00031755,7]
[392668539,1761803445976,-157.409416,0.00031845,20]
[392668540,1761803445985,-252.0,0.00031845,2]
[392668541,1761803445994,-505.53,0.00031847,4]
[392668542,1761803446004,-1145.83,0.00031847,4]
[392668543,1761803446013,-308.96236219,0.0003189,2]
[392668544,1761803446023,-249.0,0.00031937,2]
[392668545,1761803446032,-4545.5635693,0.0003198,2]
[392668546,1761803446041,-380.0,0.00032086,2]
[392668547,1761803446056,-505.53,0.00032121,4]
[392668548,1761803446070,-1145.83,0.00032121,4]
[392668549,1761803446079,-420.0,0.00032255,2]
[392668550,1761803446089,-1200.0,0.00032256,3]
[392668551,1761803446098,-249.0,0.00032282,2]
[392668552,1761803446107,-505.53,0.00032395,4]
[392668553,1761803446117,-1145.83,0.00032395,4]
[392668554,1761803446127,-163.0,0.000324,32]
[392668555,1761803446136,-253.0,0.00032476,2]
[392668556,1761803446148,-393.6741494,0.00032658,30]
[392668557,1761803446158,-505.53,0.00032669,4]
[392668558,1761803446167,-1145.83,0.00032669,4]
[392668559,1761803446177,-505.53,0.00032943,4]
[392668560,1761803446187,-1145.83,0.00032943,4]
[392668561,1761803446196,-252.0,0.00033002,2]
[392668562,1761803446205,-252.0,0.00033066,2]
[392668563,1761803446214,-530.697843,0.00033165,2]
[392668564,1761803446223,-505.53,0.00033217,4]
[392668565,1761803446233,-1145.83,0.00033217,4]
[392668566,1761803446243,-249.0,0.00033318,2]
[392668567,1761803446252,-249.0,0.00033383,2]
[392668568,1761803446261,-1533.599669,0.0003342,2]
[392668569,1761803446272,-505.53,0.00033491,4]
[392668570,1761803446281,-1145.83,0.00033491,4]
[392668571,1761803446290,-217.05741068,0.00033669,2]
[392668572,1761803446299,-249.0,0.00033746,2]
[392668573,1761803446308,-505.53,0.00033765,4]
[392668574,1761803446317,-740.41463224,0.00033765,4]
[392668575,1761803446329,-405.41536776,0.00033765,4]
[392668576,1761803446338,-249.0,0.00033769,2]
[392668577,1761803446347,-224.04463224,0.000338,7]
[392668578,1761803446358,-275.95536776,0.000338,7]
[392668579,1761803446367,-249.0,0.00033864,2]
[392668580,1761803446376,-345.07484608,0.0003389,120]
[392668581,1761803446386,-162.0,0.000339,120]
[392668582,1761803446395,-252.0,0.00033922,7]
[392668583,1761803446404,-200.0,0.00034026,30]
[392668584,1761803446414,-505.53,0.00034039,4]
[392668585,1761803446423,-1145.83,0.00034039,4]
[392668586,1761803446432,-249.0,0.00034048,2]
[392668587,1761803446441,-249.0,0.00034107,7]
[392668588,1761803446450,-249.0,0.00034128,7]
[392668589,1761803446460,-249.0,0.00034244,2]
[392668590,1761803446469,-249.0,0.00034301,2]
[392668591,1761803446479,-505.53,0.00034313,4]
[392668592,1761803446488,-1145.83,0.00034313,4]
[392668593,1761803446497,-500.0,0.0003444,10]
[392668594,1761803446507,-249.0,0.00034443,2]
[392668595,1761803446517,-253.0,0.00034533,7]
[392668596,1761803446527,-505.53,0.00034587,4]
[392668597,1761803446535,-1097.06990758,0.00034587,4]
[392668598,1761803494099,199.68079118,0.000253,2]
[392668600,1761803533246,203.75590937,0.00025205,2]
[392668601,1761803660639,2186.0,0.00025205,2]
[392668603,1761803928741,5000.0,0.00025205,2]
[392668604,1761803937368,279.16106222,0.00025205,2]
[392668605,1761803945967,605.27375019,0.00025079,14]
[392668606,1761803953598,1093.39167435,0.00025205,2]
[392668607,1761803953625,3906.60832565,0.00025205,2]
[392668608,1761803977514,5000.0,0.00025205,2]
[392668609,1761804000673,1093.40167435,0.00025205,2]
[392668610,1761804000696,3906.59832565,0.00025205,2]
[392668611,1761804008283,499.82417687,0.00025129,2]
[392668612,1761804024294,5000.0,0.00025205,2]
[392668613,1761804029638,165.94931794,0.00025129,2]
[392668614,1761804049209,427.63817954,0.00025205,2]
[392668615,1761804049232,4572.36182046,0.00025205,2]
[392668616,1761804053415,605.27375018,0.00025079,14]
[392668617,1761804070580,173.68261914,0.00025129,4]
[392668618,1761804072084,4648.69181022,0.00025205,2]
[392668619,1761804072110,351.30818978,0.00025205,2]
[392668620,1761804080712,5000.0,0.00025205,2]
[392668621,1761804083177,300.0,0.000251,2]
[392668622,1761804089665,168.956402,0.00025205,2]
[392668623,1761804095444,300.0,0.000251,2]
[392668624,1761804097954,3879.74540822,0.00025205,2]
[392668625,1761804097979,1120.25459178,0.00025205,2]
[392668626,1761804106340,5000.0,0.00025205,2]
[392668627,1761804107881,300.0,0.000251,2]
[392668628,1761804112703,205.8312446,0.00025153,2]
[392668629,1761804121054,300.0,0.000251,2]
[392668630,1761804122148,3073.92416362,0.00025205,2]
[392668631,1761804122172,1926.07583638,0.00025205,2]
[392668632,1761804130149,3583.70569102,0.00025205,2]
[392668633,1761804146044,4490.2284726,0.00025205,2]
[392668634,1761804146067,509.7715274,0.00025205,2]
[392668635,1761804168955,5000.0,0.00025205,2]
[392668636,1761804191521,1317.07008726,0.00025205,2]
[392668637,1761804200872,173.68261914,0.00025129,4]
[392668638,1761804200988,1666.0,0.00025,2]
[392668639,1761804266294,150.0,0.0002014,2]
[392668640,1761804266695,150.0,0.00021971,2]
[392668641,1761804267408,150.0,0.00023802,2]
[392668642,1761804281749,205.8312446,0.00025129,2]
[392668643,1761804288603,168.01,0.00030137,120]
[392668648,1761804367942,677.6545216,0.00025117,2]
[392668649,1761804367970,1758.65528862,0.00025117,2]
[392668680,1761804631900,-312.59393844,0.00025211,2]
[392668682,1761804631910,-200.0,0.00025229,2]
[392668684,1761804631918,-329.00946226,0.000253,2]
[392668686,1761804631929,-170.99053774,0.000253,2]
[392668688,1761804631939,-1000.0,0.00026396,2]
[392668690,1761804631949,-368.86084736,0.00027211,2]
[392668692,1761804631958,-783.46156615,0.00027492,5]
[392668694,1761804631968,-1000.0,0.00027541,30]
[392668696,1761804631977,-361.7292786,0.00027728,2]
[392668698,1761804631986,-1200.0,0.00027999,2]
[392668700,1761804631999,-182.33184314,0.00028,10]
[392668717,1761804632149,-221.4715524,0.00028,10]
[392668719,1761804632159,-211.97098701,0.00029,2]
[392668721,1761804632168,-425.12775628,0.00029211,2]
[392668723,1761804632177,-300.0,0.00029215,2]
[392668725,1761804632187,-300.0,0.00029216,2]
[392668727,1761804632196,-300.0,0.00029216,2]
[392668729,1761804632205,-300.0,0.00029216,2]
[392668731,1761804632214,-300.0,0.00029216,2]
[392668732,1761804632225,-50000.0,0.00029217,2]
[392668734,1761804632235,-209.4562468,0.00029865,2]
[392668736,1761804632244,-1200.0,0.00029872,2]
[392668738,1761804632254,-500.0,0.00029873,5]
[392668740,1761804632263,-506.41220226,0.00029873,5]
[392668742,1761804632274,-500.0,0.00029873,5]
[392668744,1761804632282,-501.8976519,0.00029873,2]
[392668746,1761804632292,-500.0,0.00029873,5]
[392668748,1761804632300,-500.0,0.00029873,5]
[392668750,1761804632310,-523.90465814,0.00029873,5]
[392668752,1761804632319,-424.30911472,0.00029873,5]
[392668754,1761804632328,-500.0,0.00029873,5]
[392668756,1761804632338,-500.0,0.00029873,5]
[392668758,1761804632347,-500.0,0.00029873,5]
[392668760,1761804632356,-500.0,0.00029873,5]
[392668762,1761804632364,-500.0,0.00029898,2]
[392668764,1761804632373,-500.0,0.00029898,2]
[392668766,1761804632383,-500.0,0.00029898,2]
[392668768,1761804632392,-500.0,0.00029898,2]
[392668770,1761804632400,-500.0,0.00029898,2]
[392668772,1761804632409,-500.0,0.00029898,2]
[392668773,1761804632418,-500.0,0.00029898,2]
[392668776,1761804632427,-500.0,0.00029898,2]
[392668777,1761804632436,-500.0,0.00029898,2]
[392668779,1761804632446,-500.0,0.00029898,2]
[392668781,1761804632456,-500.0,0.00029898,2]
[392668784,1761804632467,-500.0,0.00029898,2]
[392668786,1761804632476,-500.0,0.00029898,2]
[392668788,1761804632485,-500.0,0.00029898,2]
[392668790,1761804632494,-500.0,0.00029898,2]
[392668791,1761804632503,-500.0,0.00029898,2]
[392668794,1761804632512,-500.0,0.00029898,2]
[392668796,1761804632522,-503.06687592,0.00029898,2]
[392668798,1761804632532,-500.0,0.00029898,2]
[392668799,1761804632541,-500.0,0.00029898,2]
[392668802,1761804632550,-500.0,0.00029898,2]
[392668803,1761804632564,-500.0,0.00029898,2]
[392668806,1761804632574,-500.0,0.00029898,2]
[392668822,1761804632712,-500.0,0.00029898,2]
[392668824,1761804632722,-500.0,0.00029898,2]
[392668826,1761804632731,-500.0,0.00029898,2]
[392668828,1761804632741,-500.0,0.00029898,2]
[392668830,1761804632750,-500.0,0.00029898,2]
[392668832,1761804632759,-500.0,0.00029898,2]
[392668834,1761804632768,-500.0,0.00029898,2]
[392668836,1761804632776,-500.0,0.00029898,2]
[392668837,1761804632786,-527.67742855,0.00029898,2]
[392668839,1761804632795,-500.0,0.00029898,2]
[392668841,1761804632804,-500.0,0.00029898,2]
[392668843,1761804632813,-500.0,0.00029898,2]
[392668845,1761804632822,-500.0,0.00029898,2]
[392668848,1761804632831,-500.0,0.00029898,2]
[392668850,1761804632841,-500.0,0.00029898,2]
[392668852,1761804632851,-500.0,0.00029898,2]
[392668853,1761804632860,-500.0,0.00029898,2]
[392668856,1761804632869,-500.0,0.00029898,2]
[392668858,1761804632878,-500.0,0.00029898,2]
[392668859,1761804632887,-500.0,0.00029898,2]
[392668862,1761804632897,-500.0,0.00029898,2]
[392668864,1761804632906,-500.0,0.00029898,2]
[392668865,1761804632915,-500.0,0.00029898,2]
[392668868,1761804632925,-500.0,0.00029898,2]
[392668870,1761804632934,-500.0,0.00029898,2]
[392668871,1761804632943,-500.0,0.00029898,2]
[392668874,1761804632953,-500.0,0.00029898,2]
[392668876,1761804632963,-500.0,0.00029898,2]
[392668878,1761804632972,-500.0,0.00029898,2]
[392668880,1761804632982,-500.0,0.00029898,2]
[392668882,1761804632991,-500.0,0.00029898,2]
[392668884,1761804633001,-500.0,0.00029898,2]
[392668886,1761804633010,-500.0,0.00029898,2]
[392668888,1761804633020,-500.0,0.00029898,2]
[392668890,1761804633029,-500.0,0.00029898,2]
[392668892,1761804633039,-500.0,0.00029898,2]
[392668894,1761804633048,-500.0,0.00029898,2]
[392668896,1761804633058,-500.0,0.00029898,2]
[392668898,1761804633068,-530.1291898,0.00029898,4]
[392668900,1761804633077,-500.0,0.00029898,2]
[392668902,1761804633087,-500.0,0.00029898,2]
[392668904,1761804633096,-500.0,0.00029898,2]
[392668906,1761804633105,-500.0,0.00029898,2]
[392668908,1761804633115,-500.0,0.00029898,2]
[392668910,1761804633124,-500.0,0.00029898,2]
[392668912,1761804633134,-500.0,0.00029898,2]
[392668914,1761804633144,-500.0,0.00029898,2]
[392668916,1761804633153,-500.0,0.00029898,2]
[392668918,1761804633162,-500.0,0.00029898,2]
[392668920,1761804633171,-500.0,0.00029898,2]
[392668922,1761804633180,-500.0,0.00029898,2]
[392668924,1761804633190,-500.0,0.00029898,2]
[392668926,1761804633199,-500.0,0.00029898,2]
[392668928,1761804633208,-500.0,0.00029898,2]
[392668930,1761804633217,-500.0,0.00029898,2]
[392668932,1761804633232,-500.0,0.00029898,2]
[392668934,1761804633240,-500.0,0.00029898,2]
[392668936,1761804633249,-500.0,0.00029898,2]
[392668938,1761804633259,-300.0,0.00029898,2]
[392668940,1761804633268,-500.0,0.00029898,2]
[392668942,1761804633277,-500.0,0.00029898,2]
[392668944,1761804633287,-500.0,0.00029898,2]
[392668945,1761804633296,-500.0,0.00029898,2]
[392668947,1761804633305,-500.0,0.00029898,2]
[392668949,1761804633315,-500.0,0.00029898,2]
[392668951,1761804633324,-500.0,0.00029898,2]
[392668953,1761804633334,-500.0,0.00029898,2]
[392668955,1761804633344,-500.0,0.00029898,2]
[392668957,1761804633353,-500.0,0.00029898,2]
[392668959,1761804633363,-500.0,0.00029898,2]
[392668961,1761804633372,-500.0,0.00029898,2]
[392668963,1761804633381,-500.0,0.00029898,2]
[392668965,1761804633391,-500.0,0.00029898,2]
[392668967,1761804633400,-500.0,0.00029898,2]
[392668969,1761804633409,-500.0,0.00029898,2]
[392668971,1761804633419,-500.0,0.00029898,2]
[392668973,1761804633428,-256.06197685,0.00029898,2]
[392668975,1761804633436,-500.0,0.00029898,2]
[392668977,1761804633446,-500.0,0.00029898,2]
[392668979,1761804633456,-500.0,0.00029898,2]
[392668981,1761804633465,-500.0,0.00029898,2]
[392668983,1761804633474,-500.0,0.00029898,2]
[392668985,1761804633483,-500.0,0.00029898,2]
[392668987,1761804633494,-500.0,0.00029898,2]
[392668989,1761804633504,-500.0,0.00029898,2]
[392668991,1761804633514,-500.0,0.00029898,2]
[392668993,1761804633523,-500.0,0.00029898,2]
[392668995,1761804633532,-500.0,0.00029898,2]
[392668997,1761804633541,-500.0,0.00029898,2]
[392668999,1761804633551,-500.0,0.00029898,2]
[392669001,1761804633565,-530.26280526,0.00029898,4]
[392669003,1761804633574,-534.42457658,0.00029898,4]
[392669004,1761804633584,-500.0,0.00029898,4]
[392669006,1761804633594,-505.54545916,0.00029898,4]
[392669008,1761804633605,-300.0,0.00029898,2]
[392669010,1761804633615,-500.0,0.00029898,2]
[392669012,1761804633624,-444.78520843,0.00029898,2]
[392669014,1761804633635,-500.0,0.00029898,2]
[392669016,1761804633645,-500.0,0.00029898,2]
[392669018,1761804633654,-500.0,0.00029898,2]
[392669020,1761804633664,-500.0,0.00029898,2]
[392669022,1761804633672,-500.0,0.00029898,2]
[392669024,1761804633682,-500.0,0.00029898,4]
[392669026,1761804633691,-500.0,0.00029898,2]
[392669028,1761804633699,-500.0,0.00029898,2]
[392669030,1761804633709,-500.0,0.00029898,2]
[392669032,1761804633719,-500.0,0.00029898,2]
[392669033,1761804633728,-500.0,0.00029898,2]
[392669034,1761804633737,-500.0,0.00029898,2]
[392669035,1761804633746,-500.0,0.00029898,2]
[392669036,1761804633755,-500.0,0.00029898,2]
[392669037,1761804633764,-500.0,0.00029898,2]
[392669038,1761804633774,-500.0,0.00029898,2]
[392669039,1761804633783,-500.0,0.00029898,2]
[392669040,1761804633792,-500.0,0.00029898,2]
[392669041,1761804633801,-500.0,0.00029898,2]
[392669042,1761804633811,-500.0,0.00029898,2]
[392669043,1761804633820,-337.8369182,0.00029898,2]
[392669044,1761804633830,-500.0,0.00029898,2]
[392669045,1761804633844,-500.0,0.00029898,2]
[392669046,1761804633854,-500.0,0.00029898,2]
[392669047,1761804633864,-500.0,0.00029898,2]
[392669048,1761804633874,-500.0,0.00029898,2]
[392669049,1761804633883,-500.0,0.00029898,2]
[392669050,1761804633892,-500.0,0.00029898,2]
[392669051,1761804633902,-500.0,0.00029898,2]
[392669052,1761804633912,-500.0,0.00029898,2]
[392669053,1761804633921,-500.0,0.00029898,2]
[392669054,1761804633930,-500.0,0.00029898,2]
[392669055,1761804633939,-500.0,0.00029898,2]
[392669056,1761804633948,-500.0,0.00029898,2]
[392669057,1761804633957,-500.0,0.00029898,2]
[392669058,1761804633966,-500.0,0.00029898,2]
[392669059,1761804633975,-500.0,0.00029898,2]
[392669060,1761804633984,-500.0,0.00029898,2]
[392669061,1761804633993,-500.0,0.00029898,2]
[392669062,1761804634003,-500.0,0.00029898,2]
[392669063,1761804634012,-500.0,0.00029898,2]
[392669064,1761804634021,-500.0,0.00029898,2]
[392669065,1761804634032,-500.0,0.00029898,2]
[392669066,1761804634043,-500.0,0.00029898,2]
[392669067,1761804634055,-500.0,0.00029898,2]
[392669068,1761804634067,-500.0,0.00029898,2]
[392669069,1761804634079,-509.40949313,0.00029898,4]
[392669070,1761804634091,-522.95229636,0.00029898,4]
[392669071,1761804634103,-502.86353526,0.00029898,4]
[392669072,1761804634114,-527.87644261,0.00029898,4]
[392669073,1761804634124,-321.57621676,0.00029898,2]
[392669074,1761804634134,-500.0,0.00029898,4]
[392669075,1761804634144,-503.0862459,0.00029898,4]
[392669076,1761804634155,-500.0,0.00029898,4]
[392669077,1761804634166,-528.788372,0.00029898,4]
[392669078,1761804634177,-509.1202194,0.00029898,4]
[392669079,1761804634188,-506.68626255,0.00029898,4]
[392669080,1761804634200,-500.0,0.00029898,4]
[392669081,1761804634211,-500.0,0.00029898,4]
[392669082,1761804634222,-516.35521939,0.00029898,4]
[392669083,1761804634233,-501.21642634,0.00029898,4]
[392669084,1761804634244,-500.0,0.00029898,4]
[392669085,1761804634256,-644.5274405,0.00029898,4]
[392669086,1761804634268,-630.74594951,0.00029898,4]
[392669087,1761804634278,-503.91518993,0.00029898,4]
[392669088,1761804634289,-509.07367747,0.00029898,4]
[392669089,1761804634300,-501.31077075,0.00029898,4]
[392669090,1761804634312,-618.77348247,0.00029898,4]
[392669091,1761804634322,-500.32573904,0.00029898,4]
[392669092,1761804634334,-503.63045079,0.00029898,4]
[392669093,1761804634345,-507.10487406,0.00029898,4]
[392669094,1761804634356,-504.86894969,0.00029898,4]
[392669095,1761804634366,-502.79524162,0.00029898,4]
[392669096,1761804634376,-532.6570565,0.00029898,4]
[392669097,1761804634386,-500.0,0.00029898,4]
[392669098,1761804634397,-505.98130813,0.00029898,4]
[392669099,1761804634408,-500.0,0.00029898,4]
[392669100,1761804634419,-500.0,0.00029898,4]
[392669101,1761804634429,-500.0,0.00029898,4]
[392669102,1761804634441,-500.0,0.00029899,2]
[392669103,1761804634451,-503.17769357,0.000299,2]
[392669104,1761804634462,-403.80339554,0.00029913,2]
[392669105,1761804634473,-3719.04285168,0.00029959,2]
[392669106,1761804634485,-514.04948893,0.00029969,4]
[392669107,1761804634496,-500.0,0.00029969,3]
[392669108,1761804634508,-500.0,0.00029969,2]
[392669109,1761804634520,-500.0,0.00029969,2]
[392669110,1761804634532,-500.0,0.00029969,2]
[392669111,1761804634543,-434.759,0.0002997,24]
[392669112,1761804634556,-170.70239704,0.00029972,4]
[392669113,1761804634571,-509.01475725,0.00029973,5]
[392669114,1761804634581,-100000.0,0.0002999,2]
[392669115,1761804634591,-307.28048,0.00030128,2]
[392669116,1761804634602,-161.43634373,0.00030146,10]
[392669117,1761804634613,-500.0,0.00030172,4]
[392669118,1761804634625,-500.0,0.00030172,4]
[392669119,1761804634635,-500.0,0.00030172,4]
[392669120,1761804634648,-500.0,0.00030173,2]
[392669121,1761804634659,-500.0,0.00030243,3]
[392669122,1761804634668,-175.1364572,0.00030295,60]
[392669123,1761804634679,-1680.0,0.00030371,2]
[392669124,1761804634689,-503.04486886,0.00030421,5]
[392669125,1761804634701,-1000.0,0.00030421,5]
[392669126,1761804634713,-1000.0,0.00030421,5]
[392669127,1761804634724,-500.0,0.00030421,5]
[392669128,1761804634735,-1000.0,0.00030421,5]
[392669129,1761804634745,-505.75641288,0.00030421,5]
[392669130,1761804634763,-500.0,0.00030446,4]
[392669131,1761804634775,-500.0,0.00030446,4]
[392669132,1761804634785,-500.0,0.00030447,2]
[392669133,1761804634797,-500.0,0.0003072,4]
[392669134,1761804634807,-500.0,0.0003072,4]
[392669135,1761804634819,-500.0,0.00030721,2]
[392669136,1761804634833,-337.37989585,0.00030817,2]
[392669137,1761804634845,-385.57702383,0.00030817,2]
[392669138,1761804634855,-602.46409974,0.00030817,2]
[392669139,1761804634865,-3972.64241972,0.00030966,2]
[392669140,1761804634875,-500.0,0.00030968,5]
[392669141,1761804634888,-1500.0,0.00030968,5]
[392669142,1761804634898,-1509.62142044,0.00030968,5]
[392669143,1761804634908,-500.0,0.00030994,4]
[392669144,1761804634918,-500.0,0.00030994,4]
[392669145,1761804634929,-183.86541946,0.00031,120]
[392669146,1761804634940,-194.30010957,0.00031,120]
[392669147,1761804634951,-151.0,0.00031047,2]
[392669148,1761804634963,-151.0,0.00031047,2]
[392669149,1761804634974,-151.0,0.00031047,2]
[392669150,1761804634984,-151.0,0.00031047,2]
[392669151,1761804634995,-151.0,0.00031047,2]
[392669152,1761804635007,-151.0,0.00031047,2]
[392669153,1761804635017,-151.0,0.00031047,2]
[392669154,1761804635027,-151.0,0.00031047,2]
[392669155,1761804635037,-151.0,0.00031047,2]
[392669156,1761804635047,-151.0,0.00031047,2]
[392669157,1761804635058,-151.0,0.00031047,2]
[392669158,1761804635068,-151.0,0.00031047,2]
[392669159,1761804635079,-151.0,0.00031047,2]
[392669160,1761804635091,-151.0,0.00031047,2]
[392669161,1761804635102,-151.0,0.00031047,2]
[392669162,1761804635112,-151.0,0.00031047,2]
[392669163,1761804635122,-151.0,0.00031047,2]
[392669164,1761804635132,-151.0,0.00031047,2]
[392669165,1761804635142,-151.0,0.00031047,2]
[392669166,1761804635152,-151.0,0.00031047,2]
[392669167,1761804635162,-151.0,0.00031066,2]
[392669168,1761804635172,-151.0,0.00031121,2]
[392669169,1761804635182,-151.0,0.00031176,2]
[392669170,1761804635194,-481.3946652,0.00031211,2]
[392669171,1761804635204,-151.0,0.0003123,2]
[392669172,1761804635214,-533.37798683,0.00031268,4]
[392669173,1761804635225,-500.0,0.00031268,4]
[392669174,1761804635235,-151.0,0.00031285,2]
[392669175,1761804635245,-245.0,0.0003134,2]
[392669176,1761804635256,-2419.2,0.000314,7]
[392669177,1761804635266,-420.0,0.00031513,3]